fUSD/lending_fUSD_20250503
["ID","MTS","AMOUNT","RATE_DAILY","PERIOD"]
[359669894,1746237044753,-450.0,0.00019969,2]
[359669895,1746237044763,-450.0,0.00019969,2]
[359669896,1746237044773,-450.0,0.00019969,2]
[359669897,1746237044783,-450.0,0.00019969,2]
[359669898,1746237044797,-450.0,0.00019969,2]
[359669899,1746237044806,-450.0,0.00019969,2]
[359669900,1746237044816,-622.0,0.00019969,2]
[359669901,1746237044826,-450.0,0.00019969,2]
[359669902,1746237044836,-450.0,0.00019969,2]
[359669903,1746237044845,-122617.86,0.00019969,2]
[359669904,1746237044854,-2188.12,0.00019969,2]
[359669905,1746237044863,-521.44,0.00019969,2]
[359669906,1746237044872,-450.0,0.00019969,2]
[359669907,1746237044881,-500.98,0.00019969,2]
[359669908,1746237044891,-450.0,0.00019969,2]
[359669909,1746237044900,-496.08,0.00019969,2]
[359669910,1746237044909,-450.0,0.00019969,2]
[359669911,1746237044919,-450.0,0.00019969,2]
[359669912,1746237044931,-450.0,0.00019969,2]
[359669913,1746237044940,-1200.78,0.00019969,2]
[359669914,1746237044949,-1140.05,0.00019969,2]
[359669915,1746237044959,-450.0,0.00019969,2]
[359669916,1746237044969,-450.0,0.00019969,2]
[359669917,1746237044978,-450.0,0.00019969,2]
[359669918,1746237044987,-495.39490778,0.00019969,2]
[359669919,1746237044997,-450.0,0.00019969,2]
[359669920,1746237045007,-450.0,0.00019969,2]
[359669921,1746237045017,-450.0,0.00019969,2]
[359669922,1746237045027,-450.0,0.00019969,2]
[359669923,1746237045037,-450.0,0.00019969,2]
[359669924,1746237045047,-450.0,0.00019969,2]
[359669925,1746237045059,-517.71,0.00019969,2]
[359669926,1746237045069,-546.54,0.00019969,2]
[359669927,1746237045079,-1724.44,0.00019969,2]
[359669928,1746237045090,-450.0,0.00019969,2]
[359669929,1746237045100,-473.47,0.00019969,2]
[359669930,1746237045110,-450.0,0.00019969,2]
[359669931,1746237045119,-450.0,0.00019969,2]
[359669932,1746237045130,-518.51,0.00019969,2]
[359669933,1746237045141,-450.0,0.00019969,2]
[359669934,1746237045151,-525.45,0.00019969,2]
[359669935,1746237045161,-1019.8,0.00019969,2]
[359669936,1746237045171,-504.14,0.00019969,2]
[359669937,1746237045181,-450.0,0.00019969,2]
[359669938,1746237045191,-450.0,0.00019969,2]
[359669939,1746237045200,-450.0,0.00019969,2]
[359669940,1746237045210,-3122.0,0.00019969,2]
[359669941,1746237045220,-450.0,0.00019969,2]
[359669942,1746237045230,-450.0,0.00019969,2]
[359669943,1746237045240,-1560.41,0.00019969,2]
[359669944,1746237045250,-450.0,0.00019969,2]
[359669945,1746237045259,-1457.91,0.00019969,2]
[359669946,1746237045268,-514.08,0.00019969,2]
[359669947,1746237045278,-450.0,0.00019969,2]
[359669948,1746237045287,-497.08,0.00019969,2]
[359669949,1746237045297,-450.0,0.00019969,2]
[359669950,1746237045307,-717.718851,0.00019969,2]
[359669951,1746237045316,-764.66,0.00019969,2]
[359669952,1746237045326,-1540.23,0.00019969,2]
[359669953,1746237045335,-450.0,0.00019969,2]
[359669954,1746237045345,-450.0,0.00019969,2]
[359669955,1746237045355,-576.09,0.00019969,2]
[359669956,1746237045364,-504.964828,0.00019969,2]
[359669957,1746237045374,-450.0,0.00019969,2]
[359669958,1746237045383,-450.0,0.00019969,2]
[359669959,1746237045396,-495.37,0.00019969,2]
[359669960,1746237045405,-450.0,0.0001997,2]
[359669961,1746237045415,-450.0,0.0001997,2]
[359669962,1746237045425,-481.19,0.0001997,2]
[359669963,1746237045434,-450.0,0.0001997,2]
[359669964,1746237045444,-450.0,0.0001997,2]
[359669965,1746237045453,-450.0,0.0001997,2]
[359669966,1746237045463,-450.0,0.0001997,2]
[359669967,1746237045472,-584.85,0.0001997,2]
[359669968,1746237045482,-450.0,0.0001997,2]
[359669969,1746237045491,-450.0,0.0001997,2]
[359669970,1746237045501,-450.0,0.0001997,2]
[359669971,1746237045511,-450.0,0.0001997,2]
[359669972,1746237045521,-450.0,0.0001997,2]
[359669973,1746237045531,-450.0,0.0001997,2]
[359669974,1746237045542,-450.0,0.0001997,2]
[359669975,1746237045551,-450.0,0.0001997,2]
[359669976,1746237045562,-450.0,0.0001997,2]
[359669977,1746237045572,-450.0,0.0001997,2]
[359669978,1746237045582,-450.0,0.0001997,2]
[359669979,1746237045591,-456.78,0.0001997,2]
[359669980,1746237045600,-450.0,0.0001997,2]
[359669981,1746237045609,-450.0,0.0001997,2]
[359669982,1746237045619,-450.0,0.0001997,2]
[359669983,1746237045628,-450.0,0.0001997,2]
[359669984,1746237045637,-450.0,0.0001997,2]
[359669985,1746237045647,-450.0,0.0001997,2]
[359669986,1746237045656,-450.0,0.0001997,2]
[359669987,1746237045666,-521.58,0.0001997,2]
[359669988,1746237045675,-450.0,0.0001997,2]
[359669989,1746237045685,-513.48,0.0001997,2]
[359669990,1746237045694,-450.0,0.0001997,2]
[359669991,1746237045704,-450.0,0.0001997,2]
[359669992,1746237045713,-647.64,0.0001997,2]
[359669993,1746237045723,-450.0,0.0001997,2]
[359669994,1746237045732,-475.79,0.0001997,2]
[359669995,1746237045742,-450.0,0.0001997,2]
[359669996,1746237045751,-450.0,0.0001997,2]
[359669997,1746237045761,-450.0,0.0001997,2]
[359669998,1746237045770,-544.64,0.0001997,2]
[359669999,1746237045780,-485.27,0.0001997,2]
[359670000,1746237045789,-450.0,0.0001997,2]
[359670001,1746237045798,-450.0,0.0001997,2]
[359670002,1746237045808,-450.0,0.0001997,2]
[359670003,1746237045820,-414.13707132,0.0001997,2]
[359670004,1746237045830,-450.0,0.0001997,2]
[359670005,1746237045841,-450.0,0.0001997,2]
[359670006,1746237045850,-450.0,0.0001997,2]
[359670007,1746237045860,-450.0,0.0001997,2]
[359670008,1746237045870,-450.0,0.0001997,2]
[359670009,1746237045880,-567.37,0.0001997,2]
[359670010,1746237045890,-450.0,0.0001997,2]
[359670011,1746237045900,-450.0,0.0001997,2]
[359670012,1746237045910,-450.0,0.0001997,2]
[359670013,1746237045919,-450.0,0.0001997,2]
[359670014,1746237045929,-450.0,0.0001997,2]
[359670015,1746237046117,-450.0,0.0001997,2]
[359670016,1746237046154,-450.0,0.0001997,2]
[359670017,1746237046164,-469.51628982,0.0001997,2]
[359670018,1746237046174,-450.0,0.0001997,2]
[359670019,1746237046184,-450.0,0.0001997,2]
[359670020,1746237046193,-450.0,0.0001997,2]
[359670021,1746237046203,-450.0,0.0001997,2]
[359670022,1746237046212,-450.0,0.0001997,2]
[359670023,1746237046222,-233.28334774,0.0001997,2]
[359670024,1746237046231,-526.08,0.0001997,2]
[359670025,1746237046241,-450.0,0.0001997,2]
[359670026,1746237046251,-450.0,0.0001997,2]
[359670027,1746237046260,-775.07,0.0001997,2]
[359670028,1746237046270,-1031.05,0.0001997,2]
[359670029,1746237046279,-450.0,0.0001997,2]
[359670030,1746237046289,-450.0,0.0001997,2]
[359670031,1746237046298,-450.0,0.0001997,2]
[359670032,1746237046308,-450.0,0.0001997,2]
[359670033,1746237046318,-450.0,0.0001997,2]
[359670034,1746237046327,-803.52,0.0001997,2]
[359670035,1746237046337,-450.0,0.0001997,2]
[359670036,1746237046346,-450.0,0.0001997,2]
[359670037,1746237046356,-379.99347333,0.0001997,2]
[359670038,1746237046365,-450.0,0.0001997,2]
[359670039,1746237046374,-450.0,0.0001997,2]
[359670040,1746237046384,-543.12,0.0001997,2]
[359670041,1746237046397,-450.0,0.0001997,2]
[359670042,1746237046407,-551.47,0.0001997,2]
[359670043,1746237046417,-959.31,0.0001997,2]
[359670044,1746237046426,-450.0,0.0001997,2]
[359670045,1746237046437,-450.0,0.0001997,2]
[359670046,1746237046447,-1377.38,0.0001997,2]
[359670047,1746237046456,-300.0,0.0001997,2]
[359670048,1746237046465,-450.0,0.0001997,2]
[359670049,1746237046475,-618.5,0.0001997,2]
[359670050,1746237046484,-467.64,0.0001997,2]
[359670051,1746237046495,-450.0,0.0001997,2]
[359670052,1746237046505,-450.0,0.0001997,2]
[359670053,1746237046515,-450.0,0.0001997,2]
[359670054,1746237046525,-450.0,0.0001997,2]
[359670055,1746237046535,-450.0,0.0001997,2]
[359670056,1746237046545,-682.96,0.0001997,2]
[359670057,1746237046555,-450.0,0.0001997,2]
[359670058,1746237046565,-523.02,0.0001997,2]
[359670059,1746237046574,-578.9,0.0001997,2]
[359670060,1746237046583,-450.0,0.0001997,2]
[359670061,1746237046593,-450.0,0.0001997,2]
[359670062,1746237046602,-450.0,0.0001997,2]
[359670063,1746237046612,-450.0,0.0001997,2]
[359670064,1746237046621,-450.0,0.0001997,2]
[359670065,1746237046631,-482.99,0.0001997,2]
[359670066,1746237046640,-173.39625193,0.0001997,2]
[359670067,1746237046650,-450.0,0.0001997,2]
[359670068,1746237046659,-761.29,0.0001997,2]
[359670069,1746237046669,-450.0,0.0001997,2]
[359670070,1746237046679,-450.0,0.0001997,2]
[359670071,1746237046689,-551.57,0.0001997,2]
[359670072,1746237046699,-670.12,0.0001997,2]
[359670073,1746237046710,-396.3745295,0.0001997,2]
[359670074,1746237046719,-478.51,0.0001997,2]
[359670076,1746237046730,-450.0,0.0001997,2]
[359670078,1746237046739,-450.0,0.0001997,2]
[359670080,1746237046750,-450.0,0.0001997,2]
[359670081,1746237046759,-450.0,0.0001997,2]
[359670082,1746237046769,-450.0,0.0001997,2]
[359670083,1746237046778,-450.0,0.0001997,2]
[359670084,1746237046788,-450.0,0.0001997,2]
[359670085,1746237046797,-720.74,0.0001997,2]
[359670086,1746237046807,-450.0,0.0001997,2]
[359670087,1746237046817,-450.0,0.0001997,2]
[359670088,1746237046827,-450.0,0.0001997,2]
[359670089,1746237046836,-711.79,0.0001997,2]
[359670090,1746237046846,-450.0,0.0001997,2]
[359670091,1746237046856,-450.0,0.0001997,2]
[359670092,1746237046866,-1649.22,0.0001997,2]
[359670093,1746237046876,-450.0,0.0001997,2]
[359670094,1746237046885,-2538.96,0.0001997,2]
[359670095,1746237046900,-450.0,0.0001997,2]
[359670096,1746237046910,-636.04,0.0001997,2]
[359670097,1746237046920,-450.0,0.0001997,2]
[359670098,1746237046929,-450.0,0.0001997,2]
[359670099,1746237046939,-560.83,0.0001997,2]
[359670100,1746237046949,-450.0,0.0001997,2]
[359670101,1746237046958,-450.0,0.0001997,2]
[359670102,1746237046967,-450.0,0.0001997,2]
[359670103,1746237046977,-450.0,0.0001997,2]
[359670104,1746237046987,-450.0,0.0001997,2]
[359670105,1746237046998,-323.33641145,0.0001997,2]
[359670106,1746237047008,-450.0,0.0001997,2]
[359670107,1746237047018,-450.0,0.0001997,2]
[359670108,1746237047028,-468.0,0.0001997,2]
[359670109,1746237047038,-997.53,0.0001997,2]
[359670110,1746237047047,-1120.06,0.0001997,2]
[359670111,1746237047057,-723.84,0.0001997,2]
[359670112,1746237047067,-450.0,0.0001997,2]
[359670113,1746237047077,-450.0,0.0001997,2]
[359670114,1746237047087,-450.0,0.0001997,2]
[359670115,1746237047097,-450.0,0.0001997,2]
[359670116,1746237047107,-1036.2,0.0001997,2]
[359670117,1746237047116,-450.0,0.0001997,2]
[359670118,1746237047126,-450.0,0.0001997,2]
[359670119,1746237047136,-450.0,0.0001997,2]
[359670120,1746237047146,-450.0,0.0001997,2]
[359670121,1746237047155,-450.0,0.0001997,2]
[359670122,1746237047166,-450.0,0.0001997,2]
[359670123,1746237047177,-450.0,0.0001997,2]
[359670124,1746237047187,-450.0,0.0001997,2]
[359670125,1746237047198,-450.0,0.0001997,2]
[359670126,1746237047208,-373.02246416,0.0001997,2]
[359670127,1746237047217,-951.84,0.0001997,2]
[359670128,1746237047228,-356.92621628,0.0001997,2]
[359670129,1746237047238,-494.69,0.0001997,2]
[359670130,1746237047248,-450.0,0.0001997,2]
[359670131,1746237047259,-1173.6,0.0001997,2]
[359670132,1746237047270,-450.0,0.0001997,2]
[359670133,1746237047280,-477.17,0.0001997,2]
[359670134,1746237047290,-800.87,0.0001997,2]
[359670135,1746237047300,-606.19,0.0001997,2]
[359670136,1746237047310,-579.19,0.0001997,2]
[359670137,1746237047321,-756.65,0.0001997,2]
[359670138,1746237047331,-1579.43,0.0001997,2]
[359670139,1746237047340,-450.0,0.0001997,2]
[359670140,1746237047349,-3830.22,0.0001997,2]
[359670141,1746237047360,-450.0,0.0001997,2]
[359670142,1746237047369,-651.84,0.0001997,2]
[359670143,1746237047379,-462.55,0.0001997,2]
[359670144,1746237047389,-841.1,0.0001997,2]
[359670145,1746237047402,-4514.32,0.0001997,2]
[359670146,1746237047412,-450.0,0.0001997,2]
[359670147,1746237047422,-998.17,0.0001997,2]
[359670148,1746237047431,-450.0,0.0001997,2]
[359670149,1746237047441,-4105.15,0.0001997,2]
[359670150,1746237047451,-450.0,0.0001997,2]
[359670151,1746237047461,-936.79,0.0001997,2]
[359670152,1746237047472,-450.0,0.0001997,2]
[359670153,1746237047483,-450.0,0.0001997,2]
[359670154,1746237047492,-450.0,0.0001997,2]
[359670155,1746237047502,-902.34,0.0001997,2]
[359670156,1746237047512,-450.0,0.0001997,2]
[359670157,1746237047522,-450.0,0.0001997,2]
[359670158,1746237047532,-785.49,0.0001997,2]
[359670159,1746237047542,-450.0,0.0001997,2]
[359670160,1746237047552,-251.93108247,0.0001997,2]
[359670161,1746237047562,-4493.82,0.0001997,2]
[359670162,1746237047571,-450.0,0.0001997,2]
[359670163,1746237047581,-450.0,0.0001997,2]
[359670164,1746237047590,-450.0,0.0001997,2]
[359670165,1746237047600,-535.63,0.0001997,2]
[359670166,1746237047609,-81627.41,0.0001997,2]
[359670167,1746237047619,-465.9,0.0001997,2]
[359670168,1746237047629,-450.0,0.0001997,2]
[359670169,1746237047639,-328.83609897,0.0001997,2]
[359670170,1746237047649,-450.0,0.0001997,2]
[359670171,1746237047658,-450.0,0.0001997,2]
[359670172,1746237047669,-4831.68,0.0001997,2]
[359670173,1746237047678,-450.0,0.0001997,2]
[359670174,1746237047687,-484.76,0.0001997,2]
[359670175,1746237047697,-26518.59,0.0001997,2]
[359670176,1746237047706,-714.53,0.0001997,2]
[359670177,1746237047716,-2377.66,0.0001997,2]
[359670178,1746237047725,-1744.7,0.0001997,2]
[359670179,1746237047735,-450.0,0.0001997,2]
[359670180,1746237047744,-1042.03,0.0001997,2]
[359670181,1746237047754,-14870.72,0.0001997,2]
[359670182,1746237047764,-450.0,0.0001997,2]
[359670183,1746237047774,-450.0,0.0001997,2]
[359670184,1746237047783,-450.0,0.0001997,2]
[359670185,1746237047793,-450.0,0.0001997,2]
[359670186,1746237047803,-682.85,0.0001997,2]
[359670187,1746237047812,-2238.11,0.0001997,2]
[359670188,1746237047821,-450.0,0.0001997,2]
[359670189,1746237047831,-588.96,0.0001997,2]
[359670190,1746237047841,-999.0,0.0001997,2]
[359670191,1746237047850,-640.0,0.0001997,2]
[359670192,1746237047860,-1337.88,0.0001997,2]
[359670193,1746237047869,-450.0,0.0001997,2]
[359670194,1746237047879,-450.0,0.0001997,2]
[359670195,1746237047889,-450.0,0.0001997,2]
[359670196,1746237047899,-450.0,0.0001997,2]
[359670197,1746237047908,-813.85,0.0001997,2]
[359670198,1746237047918,-450.0,0.0001997,2]
[359670199,1746237047930,-450.0,0.0001997,2]
[359670200,1746237047940,-450.0,0.0001997,2]
[359670201,1746237047949,-450.0,0.0001997,2]
[359670202,1746237047959,-563.61,0.0001997,2]
[359670203,1746237047969,-450.0,0.0001997,2]
[359670204,1746237047980,-450.0,0.0001997,2]
[359670205,1746237047991,-450.0,0.00019971,2]
[359670206,1746237048000,-512.86,0.00019971,2]
[359670207,1746237048010,-150.0,0.00019971,2]
[359670208,1746237048021,-500.0,0.00019971,2]
[359670209,1746237048031,-500.0,0.00019971,2]
[359670210,1746237048042,-150.0,0.00019971,2]
[359670211,1746237048052,-500.0,0.00019971,2]
[359670212,1746237048061,-222.40857925,0.00019971,2]
[359670213,1746237048071,-500.0,0.00019971,2]
[359670214,1746237048081,-500.0,0.00019971,2]
[359670215,1746237048091,-500.0,0.00019971,2]
[359670216,1746237048101,-150.0,0.00019971,2]
[359670217,1746237048112,-500.0,0.00019971,2]
[359670218,1746237048122,-500.0,0.00019971,2]
[359670219,1746237048132,-500.0,0.00019971,2]
[359670220,1746237048141,-500.0,0.00019971,2]
[359670221,1746237048151,-203.43647274,0.00019971,2]
[359670222,1746237048162,-24428.0,0.00019973,2]
[359670223,1746237048173,-162.45076163,0.00019973,2]
[359670224,1746237048183,-500.0,0.00019973,2]
[359670225,1746237048194,-500.0,0.00019973,2]
[359670226,1746237048204,-606.82794835,0.00019973,2]
[359670227,1746237048214,-501.15741321,0.00019973,2]
[359670228,1746237048224,-501.21994559,0.00019973,2]
[359670229,1746237048234,-500.0,0.00019973,2]
[359670230,1746237048244,-500.0,0.00019973,2]
[359670231,1746237048254,-503.14930803,0.00019973,2]
[359670232,1746237048264,-500.0,0.00019973,2]
[359670233,1746237048274,-506.33875235,0.00019973,2]
[359670234,1746237048283,-160.45164529,0.00019973,2]
[359670235,1746237048293,-959.0,0.00019973,2]
[359670236,1746237048303,-500.0,0.00019973,2]
[359670237,1746237048313,-500.0,0.00019973,2]
[359670238,1746237048323,-500.0,0.00019973,2]
[359670239,1746237048333,-539.24803438,0.00019973,2]
[359670240,1746237048343,-500.0,0.00019973,2]
[359670241,1746237048353,-502.06385384,0.00019973,2]
[359670242,1746237048362,-517.26161729,0.00019973,2]
[359670243,1746237048372,-500.0,0.00019973,2]
[359670244,1746237048381,-500.0,0.00019973,2]
[359670245,1746237048391,-160.20238278,0.00019973,2]
[359670246,1746237048405,-505.26039964,0.00019973,2]
[359670247,1746237048415,-303.17184781,0.00019973,2]
[359670248,1746237048425,-152.63342926,0.00019973,2]
[359670249,1746237048435,-500.8951883,0.00019973,2]
[359670250,1746237048444,-243.83231524,0.00019973,2]
[359670251,1746237048454,-1831.0,0.00019986,2]
[359670252,1746237048464,-2481.0367771,0.00019986,2]
[359670253,1746237048475,-9462.4342574,0.00019986,2]
[359670254,1746237048485,-16870.1715717,0.00019986,2]
[359670255,1746237048495,-14531.3086013,0.00019986,2]
[359670256,1746237048505,-12192.4456309,0.00019986,2]
[359670257,1746237048515,-330443.430392,0.00019986,2]
[359670258,1746237048526,-1077.03046632,0.0001999,2]
[359670259,1746237048536,-1077.03046632,0.0001999,2]
[359670260,1746237048546,-500.0,0.00019999,2]
[359670261,1746237048619,-679.71892541,0.00019999,2]
[359670262,1746237048629,-500.0,0.00019999,2]
[359670263,1746237048643,-300.0,0.00019999,2]
[359670264,1746237048653,-300.0,0.00019999,2]
[359670265,1746237048663,-300.0,0.00019999,2]
[359670266,1746237048673,-3975.69203346,0.00019999,2]
[359670267,1746237048684,-74104.10968617,0.0002,2]
[359670268,1746237048694,-267.56632987,0.0002,2]
[359670269,1746237048704,-562227.44629316,0.0002,2]
[359670270,1746237048714,-1648693.53714434,0.0002,2]
[359670271,1746237048724,-91686.90747983,0.0002,2]
[359670272,1746237048735,-301.36480014,0.0002,2]
[359670273,1746237048745,-10000.0,0.0002,2]
[359670274,1746237048754,-1483.2404447,0.0002,2]
[359670275,1746237048764,-4305.3293481,0.0002,2]
[359670276,1746237048775,-481.40316897,0.0002,2]
[359670277,1746237048785,-50000.0,0.0002,2]
[359670278,1746237048794,-3054.49384373,0.0002,2]
[359670279,1746237048804,-5655.02557425,0.0002,2]
[359670280,1746237048813,-1054085.35906809,0.0002,2]
[359670281,1746237049372,-450.0,0.00019968,2]
[359670282,1746237049381,-7863.35309977,0.0002,2]
[359670283,1746237049736,-151.0,0.00019863,2]
[359670284,1746237049746,-2937.012,0.0002,2]
[359670285,1746237049762,-450.0,0.00019695,2]
[359670286,1746237049771,-840.26,0.0002,2]
[359670287,1746237049788,-450.0,0.00019969,2]
[359670288,1746237049799,-240.95725058,0.0002,2]
[359670289,1746237103876,-194.13,0.00019595,2]
[359670291,1746237128093,542.53124,0.00019497,2]
[359670293,1746237162464,157.05031,0.0003287,60]
[359670294,1746237167359,157.05031,0.0003287,61]
[359670295,1746237168360,3026.1,0.0001905,2]
[359670296,1746237170266,157.05031,0.0003287,62]
[359670297,1746237173059,157.05031,0.0003287,63]
[359670298,1746237176084,157.05031,0.0003287,64]
[359670299,1746237178959,157.05031,0.0003287,65]
[359670300,1746237181850,157.05031,0.0003287,66]
[359670301,1746237184749,157.05031,0.0003287,67]
[359670302,1746237187774,157.05031,0.0003287,68]
[359670303,1746237190668,157.05031,0.0003287,69]
[359670304,1746237194698,157.05031,0.0003287,70]
[359670305,1746237197632,157.05031,0.0003287,71]
[359670306,1746237200379,157.05031,0.0003287,72]
[359670307,1746237203344,157.05031,0.0003287,73]
[359670308,1746237206324,157.05031,0.0003287,74]
[359670309,1746237209068,157.05031,0.0003287,75]
[359670310,1746237211972,157.05031,0.0003287,76]
[359670311,1746237214910,157.05031,0.0003287,77]
[359670312,1746237217563,157.05031,0.0003287,78]
[359670313,1746237220287,157.05031,0.0003287,79]
[359670314,1746237224004,157.05031,0.0003287,80]
[359670315,1746237226544,157.05031,0.0003287,81]
[359670316,1746237229129,157.05031,0.0003287,82]
[359670317,1746237231686,157.05031,0.0003287,83]
[359670318,1746237234419,157.05031,0.0003287,84]
[359670319,1746237237004,157.05031,0.0003287,85]
[359670320,1746237239886,157.05031,0.0003287,86]
[359670321,1746237242335,157.05031,0.0003287,87]
[359670322,1746237244833,157.05031,0.0003287,88]
[359670323,1746237247631,157.05031,0.0003287,89]
[359670324,1746237252801,157.05031,0.0003287,90]
[359670325,1746237256254,157.05031,0.0003287,91]
[359670326,1746237259570,157.05031,0.0003287,92]
[359670327,1746237289834,43621.21,0.00018972,2]
[359670328,1746237381529,500.0,0.00018762,2]
[359670329,1746237500312,1894.63184263,0.000328,60]
[359670330,1746237539123,220.93104745,0.000328,60]
[359670331,1746237566481,370.87,0.00016792,2]
[359670332,1746237566690,370.87,0.00019055,2]
[359670333,1746237613085,222.00107749,0.00019496,2]
[359670334,1746237621163,276.9338,0.00019494,2]
[359670335,1746237631958,2200.3008,0.00019493,2]
[359670336,1746237658670,21175.3777002,0.00019,2]
[359670337,1746237668375,204.36703664,0.00019496,2]
[359670338,1746237668414,151.0,0.00019496,2]
[359670339,1746237668502,151.0,0.00019496,2]
[359670340,1746237705025,308.83492,0.00032876,60]
[359670341,1746237705574,151.0,0.00019496,2]
[359670342,1746237705616,151.0,0.00019496,2]
[359670343,1746237706903,151.0,0.00019496,2]
[359670344,1746237707830,151.0,0.00019496,2]
[359670345,1746237709261,151.0,0.00019496,2]
[359670346,1746237710111,151.0,0.00019496,2]
[359670347,1746237711022,151.0,0.00019496,2]
[359670348,1746237711795,151.0,0.00019496,2]
[359670349,1746237712611,151.0,0.00019496,2]
[359670350,1746237713714,247.19772197,0.00019496,2]
[359670351,1746237722737,168.67,0.00019298,2]
[359670352,1746237740548,496.933,0.00019493,2]
[359670355,1746237794557,426.80993541,0.000195,2]
[359670356,1746237801970,250.0,0.00017,2]
[359670357,1746237803059,300.0,0.00019,2]
[359670358,1746237805094,484.8706,0.00019492,2]
[359670359,1746237839597,153.56,0.00018727,2]
[359670360,1746237842000,1000.0,0.00019493,2]
[359670361,1746237876761,4143.7442,0.00019492,2]
[359670362,1746237878878,5430.6003563,0.00019491,2]
[359670363,1746237916974,182.35315028,0.00019495,2]
[359670364,1746237935151,1000.0,0.0001868,2]
[359670365,1746237995328,203.6935,0.0001949,2]
[359670366,1746238021438,5085.8646133,0.00019,2]
[359670367,1746238047046,336.26,0.00018686,2]
[359670368,1746238056577,270.1457,0.0001949,2]
[359670369,1746238087008,1045.5411,0.0001949,2]
[359670370,1746238089163,249.22,0.00018706,2]
[359670371,1746238110255,5559.37912329,0.00019494,2]
[359670372,1746238178395,666.9515173,0.00019493,2]
[359670377,1746238232887,-1348.16384016,0.00019536,2]
[359670378,1746238232899,-4082.43651614,0.00019536,2]
[359670379,1746238232910,-300.0,0.00019538,2]
[359670380,1746238232920,-1200.0,0.00019538,2]
[359670381,1746238232931,-300.0,0.00019538,2]
[359670382,1746238232942,-5559.3791232,0.00019539,2]
[359670383,1746238232952,-12997.62449278,0.0001958,2]
[359670384,1746238232961,-5430.6003563,0.00019582,2]
[359670386,1746238232970,-207.4,0.00019583,2]
[359670388,1746238232980,-151.0,0.00019584,2]
[359670389,1746238232990,-5559.3791232,0.00019584,2]
[359670390,1746238232999,-3501.46804871,0.00019588,2]
[359670391,1746238233008,-3501.46804871,0.00019588,2]
[359670392,1746238233018,-3501.46804871,0.00019588,2]
[359670393,1746238233031,-3501.46804871,0.00019588,2]
[359670394,1746238233041,-3501.46804871,0.00019588,2]
[359670395,1746238233051,-3501.46804871,0.00019588,2]
[359670396,1746238233061,-3501.46804871,0.00019588,2]
[359670397,1746238233071,-3501.46804871,0.00019588,2]
[359670398,1746238233080,-3501.46804871,0.00019588,2]
[359670399,1746238233090,-3501.46804871,0.00019588,2]
[359670400,1746238233100,-3501.46804871,0.00019588,2]
[359670401,1746238233109,-3501.46804871,0.00019588,2]
[359670402,1746238233119,-3501.46804871,0.00019588,2]
[359670403,1746238233129,-980.36258311,0.00019588,2]
[359670404,1746238233369,-2005.01203449,0.00019588,2]
[359670405,1746238233381,-516.09343111,0.00019588,2]
[359670406,1746238233391,-1363.35508768,0.00019588,2]